{"text_format":"1","workbook":"xlsx","n_sheets":3,"sheets":["使用方法","入力用シート","入力例）平成30年3月30日"],"not_rendered":{"charts":0,"images":4,"macros":1,"external_links":0,"defined_names":4,"comments":0,"pivot_tables":0},"unopened":[],"bounds":{"document_bytes":16777216,"sheet_cells":100000,"rows_first":2000,"rows_last":500,"rows_between":2000,"halvings":0,"cell_chars":16384,"cell_head_chars":4096},"cells_cut":0,"cells_raw":0,"read":"whole","date_system":"1900"}

{"sheet":"使用方法","index":0,"n_rows":15,"n_cols":5,"rows_kept":15,"cut":false,"hidden":false,"merged":[[2,3,2,4],[0,1,0,4]]}
[null,"事前対応の手引きに関するチェックリスト（2017版）の使用方法"]
[]
[null,"画面イメージ",null,"操作手順"]
[]
[null,null,null,"①","ファイルを立ち上げ、「コンテンツの有効化」ボタンを押してください。"]
[]
[null,null,null,"②","「入力シート」のStep１とStep２の各項目を確認していただきながら、取組を行っている項目へのチェックや担当課の記入等を行ってください。"]
[]
[null,null,null,"③","チェックが終了したら、「入力シート」の最下段にある、【チェック実施日】と【チェック実施者】を記入してください。\nなお、【チェック実施日】の記入の際は、「平成●年●月●日」と記入するなど、「/」（スラッシュ）は使用しないでください。\n※「/」を使用すると、④の際にエラーメッセージが出ます。"]
[]
[null,null,null,"④","全ての入力が終わったら、シートの最下段の右にある「シート作成」ボタンを押してください。"]
[]
[null,null,null,"⑤","③で記入した【チェック実施日】の名前のついたシートが作成されます。必要に応じて、打出し等を行ってください。\nなお、「シート作成」ボタンを押した際には、「入力シート」のチェック結果はクリアされます。次のチェックを実施し「シート作成」ボタンを押すことで、シートが増えていくこととなります。\n"]
[]
[null,null,null,"※","不必要なシートが作成された場合は、随時、削除していただいて構いません。ただし、「入力シート」は絶対に削除しないでください。"]

{"sheet":"入力用シート","index":1,"n_rows":149,"n_cols":17,"rows_kept":149,"cut":false,"hidden":false,"merged":[[135,1,135,4],[135,5,135,6],[135,7,135,8],[135,9,135,10],[124,3,125,4],[124,5,125,5],[124,6,125,7],[124,8,125,8],[144,6,144,8],[140,1,140,4],[140,5,140,6],[140,7,140,8],[140,9,140,10],[141,1,142,10],[138,1,138,4],[138,5,138,6],[138,7,138,8],[138,9,138,10],[139,1,139,4],[139,5,139,6],[139,7,139,8],[139,9,139,10],[137,7,137,8],[137,9,137,10],[134,1,134,4],[134,5,134,6],[134,7,134,8],[134,9,134,10],[131,2,131,13],[116,2,117,2],[116,3,117,4],[116,5,117,5],[116,6,117,7],[116,8,117,8],[118,4,119,4],[118,5,119,5],[118,6,119,7],[118,8,119,8],[126,2,127,2],[126,3,127,4],[126,5,127,5],[126,6,127,7],[126,8,127,8],[120,4,121,4],[120,5,121,5],[120,6,121,7],[120,8,121,8],[122,4,123,4],[122,5,123,5],[122,6,123,7],[122,8,123,8],[124,2,125,2],[110,4,111,4],[110,5,111,5],[110,6,111,7],[110,8,111,8],[112,4,113,4],[112,5,113,5],[112,6,113,7],[112,8,113,8],[114,2,115,2],[114,3,115,4],[114,5,115,5],[114,6,115,7],[114,8,115,8],[104,4,105,4],[104,5,105,5],[104,6,105,7],[104,8,105,8],[106,4,107,4],[106,5,107,5],[106,6,107,7],[106,8,107,8],[108,2,109,2],[108,3,109,4],[108,5,109,5],[108,6,109,7],[108,8,109,8],[101,2,103,2],[101,3,103,4],[101,5,103,5],[101,6,103,7],[91,8,92,8],[93,6,93,7],[94,6,94,7],[95,6,95,7],[96,2,97,2],[96,3,97,4],[96,5,97,5],[96,6,97,7],[96,8,97,8],[101,8,103,8],[91,2,92,2],[91,3,92,4],[91,5,92,5],[91,6,92,7],[85,2,86,2],[85,3,86,4],[85,5,86,5],[85,6,86,7],[98,6,98,7],[82,2,83,2],[82,3,83,4],[82,5,83,5],[82,6,83,7],[82,8,83,8],[84,6,84,7],[78,2,79,2],[78,3,79,4],[78,5,79,5],[78,6,79,7],[78,8,79,8],[80,4,81,4],[80,5,81,5],[80,6,81,7],[80,8,81,8],[72,2,73,2],[72,3,73,4],[72,5,73,5],[72,6,73,7],[72,8,73,8],[77,6,77,7],[68,4,69,4],[68,5,69,5],[68,6,69,7],[68,8,69,8],[70,4,71,4],[70,5,71,5],[70,6,71,7],[70,8,71,8],[74,2,75,2],[74,3,75,4],[74,5,75,5],[74,6,75,7],[74,8,75,8],[63,2,65,2],[63,3,65,4],[63,5,65,5],[63,6,65,7],[63,8,65,8],[66,4,67,4],[66,5,67,5],[66,6,67,7],[66,8,67,8],[59,4,60,4],[59,5,60,5],[59,6,60,7],[59,8,60,8],[61,4,62,4],[61,5,62,5],[61,6,62,7],[61,8,62,8],[55,4,56,4],[55,5,56,5],[55,6,56,7],[55,8,56,8],[57,2,58,2],[57,3,58,4],[57,5,58,5],[57,6,58,7],[57,8,58,8],[51,2,52,2],[51,3,52,4],[51,5,52,5],[51,6,52,7],[51,8,52,8],[53,4,54,4],[53,5,54,5],[53,6,54,7],[53,8,54,8],[47,4,48,4],[47,5,48,5],[47,6,48,7],[47,8,48,8],[49,4,50,4],[49,5,50,5],[49,6,50,7],[49,8,50,8],[44,6,44,7],[45,2,46,2],[45,3,46,4],[45,5,46,5],[45,6,46,7],[45,8,46,8],[40,2,41,2],[40,3,41,4],[40,5,41,5],[40,6,41,7],[40,8,41,8],[42,2,43,2],[42,3,43,4],[42,5,43,5],[42,6,43,7],[42,8,43,8],[35,4,37,4],[35,5,37,5],[35,6,37,7],[35,8,37,8],[38,4,39,4],[38,5,39,5],[38,6,39,7],[38,8,39,8],[29,6,29,7],[30,6,30,7],[31,6,31,7],[32,6,32,7],[33,4,34,4],[33,5,34,5],[33,6,34,7],[33,8,34,8],[26,2,27,2],[26,3,27,4],[26,5,27,5],[26,6,27,7],[26,8,27,8],[28,6,28,7],[22,3,23,3],[22,4,23,4],[22,5,23,5],[22,6,23,7],[22,8,23,8],[24,3,25,3],[24,4,25,4],[24,5,25,5],[24,6,25,7],[24,8,25,8],[20,2,21,2],[20,3,21,4],[20,5,21,5],[20,6,21,7],[20,8,21,8],[13,6,13,7],[14,6,14,7],[15,6,15,7],[16,6,16,7],[17,6,17,7],[18,6,18,7],[3,1,3,4],[3,6,3,7],[4,6,4,7],[5,2,6,2],[5,3,6,4],[5,5,6,5],[5,6,6,7],[5,8,6,8],[19,6,19,7],[146,6,146,8],[148,6,148,8],[7,6,7,7],[8,6,8,7],[9,6,9,7],[10,6,10,7],[11,6,11,7],[12,6,12,7],[1,15,1,16],[32,10,32,12],[85,8,86,8],[87,6,87,7],[88,6,88,7],[89,6,89,7],[90,6,90,7],[99,6,99,7],[100,6,100,7],[128,2,129,13],[136,1,136,4],[136,5,136,6],[136,7,136,8],[136,9,136,10],[137,1,137,4],[137,5,137,6]]}
[]
[null,"■四国における津波災害からの復興まちづくりに向けた事前対応の手引きに関するチェックリスト（2018版）（改訂案）",null,null,null,null,null,null,null,null,null,null,null,null,null,"集計用"]
[]
[null,"Step１　事前対応の取組の実施状況の確認",null,null,null,"参考頁","担当課",null,"チエック欄",null,"チエック欄","Step２　内容及び配慮事項等の確認","参考頁","備考",null,"実施状況",false]
[null,"Ⅰ　基礎情報・被災状況の収集・整理",null,null,null,null,null,null,null,null,"① 細項目",{"$f":"COUNTIF(Q6:Q25,TRUE)","v":0},{"$f":"\"／\"&COUNTA(Q6:Q25)","v":"／20"},{"$f":"L5/COUNTA(Q6:Q25)","v":0}]
[null,null,"①","災害時に必要となるデータ・情報等について、定期的な収集・整理ができているか。",null,"Ｐ13,14",null,null,null,null,null,"航空写真（現況）","Ｐ14",null,null,false,false]
[null,null,null,null,null,null,null,null,null,null,null,"図面（基盤地図、インフラ図面等）","Ｐ14",null,null,null,false]
[null,null,null,null,null,null,null,null,null,null,null,"応急仮設住宅の建設候補地","Ｐ14",null,null,null,false]
[null,null,null,null,null,null,null,null,null,null,null,"仮設店舗・工場団地整備用地の候補地","Ｐ14",null,null,null,false]
[null,null,null,null,null,null,null,null,null,null,null,"事業者情報（業種、連絡先、事業継続意向等）","Ｐ14",null,null,null,false]
[null,null,null,null,null,null,null,null,null,null,null,"土地利用状況（面積、都市施設状況、公共交通状況）","Ｐ14",null,null,null,false]
[null,null,null,null,null,null,null,null,null,null,null,"事業不適格地（埋蔵文化財包蔵地、農振農用地、保安林等）","Ｐ14",null,null,null,false]
[null,null,null,null,null,null,null,null,null,null,null,"洪水・土砂災害等の災害危険箇所","Ｐ14",null,null,null,false]
[null,null,null,null,null,null,null,null,null,null,null,"公有財産台帳","Ｐ14",null,null,null,false]
[null,null,null,null,null,null,null,null,null,null,null,"都道府県公用地、国有地等の照会","Ｐ14",null,null,null,false]
[null,null,null,null,null,null,null,null,null,null,null,"登記簿（土地）","Ｐ15",null,null,null,false]
[null,null,null,null,null,null,null,null,null,null,null,"登記簿（建物）","Ｐ15",null,null,null,false]
[null,null,null,null,null,null,null,null,null,null,null,"固定資産課税台帳","Ｐ15",null,null,null,false]
[null,null,null,null,null,null,null,null,null,null,null,"地権者情報（地籍調査の推進、所有者不明土地の探索を含む）","Ｐ15",null,null,null,false]
[null,null,null,null,null,null,null,null,null,null,null,"不動産鑑定標準価格","Ｐ15",null,null,null,false]
[null,null,"②","事前に収集したデータ・情報等については、適切な保管ができているか。",null,"Ｐ15",null,null,null,null,null,"空き住戸戸数、所在","Ｐ14",null,null,false,false]
[null,null,null,null,null,null,null,null,null,null,null,"地区別人口（年齢階層別）","Ｐ14",null,null,null,false]
[null,null,null,null,"共通のフォーマットやＧＩＳデータ等として整理できているか。","Ｐ15",null,null,null,null,null,"地区別世帯数（世帯構成別）","Ｐ14",null,null,false,false]
[null,null,null,null,null,null,null,null,null,null,null,"住民組織の状況（自主防災組織、連絡体制等）","Ｐ14",null,null,null,false]
[null,null,null,null,"関係部局で共有できる仕組みができているか。","Ｐ15",null,null,null,null,null,"都市計画マスタープラン等の上位計画","Ｐ15",null,null,false,false]
[null,null,null,null,null,null,null,null,null,null,"③-1 細項目",{"$f":"COUNTIF(Q27:Q32,TRUE)","v":0},{"$f":"\"／\"&COUNTA(Q27:Q32)","v":"／6"},{"$f":"L26/COUNTA(Q27:Q32)","v":0}]
[null,null,"③","災害後に必要となるデータ・情報について、収集を行う体制ができているか。",null,"Ｐ16",null,null,null,null,null,"航空写真（被災後）","Ｐ14",null,null,false,false]
[null,null,null,null,null,null,null,null,null,null,null,"津波による被害状況（浸水範囲、浸水深、被災世帯等）","Ｐ14",null,null,null,false]
[null,null,null,null,null,null,null,null,null,null,null,"被災世帯所在地・世帯構成等","Ｐ14",null,null,null,false]
[null,null,null,null,null,null,null,null,null,null,null,"防災施設等の被害状況","Ｐ15",null,null,null,false]
[null,null,null,null,null,null,null,null,null,null,null,"インフラ施設の被害状況","Ｐ15",null,null,null,false]
[null,null,null,null,null,null,null,null,null,null,null,"公共施設・ライフラインの被害状況","Ｐ15",null,null,null,false]
[null,null,null,null,null,null,null,null,null,null,"※住家の被災等は、「応急危険度判定・被災宅地危険度判定」の項目にて整理。"]
[null,null,null,null,"自市町村にて調査等を行うための調査計画等を検討しているか。","Ｐ16",null,null,null,null,null,null,null,null,null,false]
[null,null,null,null,null,null,null,null,null,null,"③-2 細項目",{"$f":"COUNTIF(Q36:Q40,TRUE)","v":0},{"$f":"\"／\"&COUNTA(Q36:Q40)","v":"／5"},{"$f":"L35/COUNTA(Q36:Q40)","v":0}]
[null,null,null,null,"データ・情報を所有又は調査等を行う機関の把握と依頼方法の検討を行っているか。","Ｐ16",null,null,null,null,null,"調査内容の事前検討","P16",null,null,false,false]
[null,null,null,null,null,null,null,null,null,null,null,"調査手法の事前検討","P16",null,null,null,false]
[null,null,null,null,null,null,null,null,null,null,null,"調査結果の整理フォーマット（様式等）の作成","P16",null,null,null,false]
[null,null,null,null,"被災状況等の把握に向け、各種団体や機関との協定を締結しているか。","Ｐ16",null,null,null,null,null,"調査工程の事前検討","P16",null,null,false,false]
[null,null,null,null,null,null,null,null,null,null,null,"発注方式や発注先の候補等の事前検討","P16",null,null,null,false]
[null,null,"④","被災後に必要となるデータ・情報等は安全な場所等において管理できているか。",null,"Ｐ16",null,null,null,null,"④ 細項目",{"$f":"COUNTIF(Q42:Q44,TRUE)","v":0},{"$f":"\"／\"&COUNTA(Q42:Q44)","v":"／3"},{"$f":"L41/COUNTA(Q42:Q44)","v":0},null,false]
[null,null,null,null,null,null,null,null,null,null,null,"浸水想定区域外や遠隔地での保管","P16",null,null,null,false]
[null,null,"⑤","被災後すぐに必要となるデータ・情報等は、紙媒体でも保管できているか。",null,"Ｐ16",null,null,null,null,null,"複数（バックアップ）での保管","P16",null,null,false,false]
[null,null,null,null,null,null,null,null,null,null,null,"民間事業者等での保管","P16",null,null,null,false]
[null,"Ⅲ　住まい・生活の再建",null,null,null,null,null,null,null,null,"① 細項目",{"$f":"COUNTIF(Q46:Q48,TRUE)","v":0},{"$f":"\"／\"&COUNTA(Q46:Q48)","v":"／3"},{"$f":"L45/COUNTA(Q46:Q48)","v":0}]
[null,null,"①","応急仮設住宅建設候補用地の抽出は行っているか。",null,"Ｐ23",null,null,null,null,null,"県の公有地や国有地等の照会","Ｐ23",null,null,false,false]
[null,null,null,null,null,null,null,null,null,null,null,"候補地抽出における各事業用地等との調整","Ｐ23",null,null,null,false]
[null,null,null,null,"災害リスクやライフラインの設置状況等を踏まえ、候補地の優先順位の検討は行っているか。","Ｐ23",null,null,null,null,null,"不足する場合には防災公園等の整備による対応を検討","Ｐ23",null,null,false,false]
[]
[null,null,null,null,"候補地におけるレイアウトの検討は行っているか。","Ｐ23",null,null,null,null,null,null,null,null,null,false]
[]
[null,null,"②","応急危険度判定の実施に向けた体制ができているか。",null,"Ｐ15,25",null,null,null,null,null,null,null,null,null,false]
[]
[null,null,null,null,"建築士会等との協定を締結しているか。","Ｐ25",null,null,null,null,null,null,null,null,null,false]
[null,null,null,null,null,null,null,null,null,null,"② 細項目",{"$f":"COUNTIF(Q56:Q58,TRUE)","v":0},{"$f":"\"／\"&COUNTA(Q56:Q58)","v":"／3"},{"$f":"L55/COUNTA(Q56:Q58)","v":0}]
[null,null,null,null,"速やかな実施に向けた準備を行っているか。","Ｐ25",null,null,null,null,null,"応急危険度判定士等の養成","Ｐ25",null,null,false,false]
[null,null,null,null,null,null,null,null,null,null,null,"応急危険度判定の実施等に関する計画の作成","Ｐ25",null,null,null,false]
[null,null,"③","被災宅地危険度判定の実施に向けた体制ができているか。",null,"Ｐ15,25",null,null,null,null,null,"応急危険度判定等に必要な資機材の備蓄","Ｐ25",null,null,false,false]
[]
[null,null,null,null,"他市町村等へ応援要請を行う体制はできているか。","Ｐ25",null,null,null,null,"③ 細項目",{"$f":"COUNTIF(Q61:Q63,TRUE)","v":0},{"$f":"\"／\"&COUNTA(Q61:Q63)","v":"／3"},{"$f":"L60/COUNTA(Q61:Q63)","v":0},null,false]
[null,null,null,null,null,null,null,null,null,null,null,"被災宅地危険度判定士等の養成","Ｐ25",null,null,null,false]
[null,null,null,null,"速やかな実施に向けた準備を行っているか。","Ｐ25",null,null,null,null,null,"被災宅地危険度判定の実施等に関する計画の作成","Ｐ25",null,null,false,false]
[null,null,null,null,null,null,null,null,null,null,null,"被災宅地危険度判定等に必要な資機材の備蓄","Ｐ25",null,null,null,false]
[null,null,"④","応急借上げ住宅として利用する可能性のある民間賃貸住宅等の空き戸数等の把握方法を検討しているか。",null,"Ｐ25",null,null,null,null,"④ 細項目",{"$f":"COUNTIF(Q65:Q66,TRUE)","v":0},{"$f":"\"／\"&COUNTA(Q65:Q66)","v":"／2"},{"$f":"L64/COUNTA(Q65:Q66)","v":0}]
[null,null,null,null,null,null,null,null,null,null,null,"空き住戸戸数の把握方法","Ｐ14,25",null,null,false,false]
[null,null,null,null,null,null,null,null,null,null,null,"物件状況（被害の有無等）の確認方法","Ｐ14,25",null,null,null,false]
[null,null,null,null,"不動産業界との協定締結等を行っているか。","Ｐ25",null,null,null,null,"⑤ 細項目",{"$f":"COUNTIF(Q68:Q73,TRUE)","v":0},{"$f":"\"／\"&COUNTA(Q68:Q73)","v":"／6"},{"$f":"L67/COUNTA(Q68:Q73)","v":0}]
[null,null,null,null,null,null,null,null,null,null,null,"応急仮設住宅への入居意向の把握方法","Ｐ25",null,null,false,false]
[null,null,null,null,"応急借上げ住宅として活用可能な空家等の把握を行っているか。","Ｐ25",null,null,null,null,null,"入居者の選定基準","Ｐ25",null,null,null,false]
[null,null,null,null,null,null,null,null,null,null,null,"申込受付、抽選、入居者選定の通知方法等","Ｐ25",null,null,false,false]
[null,null,null,null,"空き住宅の所有者の意向把握方法等について検討しているか。","Ｐ25",null,null,null,null,null,"コミュニティへの配慮の方法","Ｐ25",null,null,null,false]
[null,null,null,null,null,null,null,null,null,null,null,"応急仮設住宅の標準仕様の検討（県との調整）","Ｐ25",null,null,false,false]
[null,null,"⑤","応急仮設住宅の入居手続き等について検討しているか。",null,"Ｐ25",null,null,null,null,null,"応急仮設住宅の解消、撤去の方法","Ｐ25",null,null,null,false]
[null,null,null,null,null,null,null,null,null,null,"⑥ 細項目",{"$f":"COUNTIF(Q75:Q77,TRUE)","v":0},{"$f":"\"／\"&COUNTA(Q75:Q77)","v":"／3"},{"$f":"L74/COUNTA(Q75:Q77)","v":0},null,false]
[null,null,"⑥","災害公営住宅等の確保に向けた検討を行っているか。",null,"Ｐ25",null,null,null,null,null,"復興まちづくりにおける事業用地の候補地の抽出","Ｐ25",null,null,null,false]
[null,null,null,null,null,null,null,null,null,null,null,"復旧期・復興期に必要となる各事業用地等との調整","Ｐ25",null,null,false,false]
[null,null,null,null,null,null,null,null,null,null,null,"復興まちづくり計画への位置づけ（まちの居住機能の一部）",null,null,null,null,false]
[null,"Ⅱ　復興まちづくりに必要な制限の検討・実施",null,null,null,null,null,null,null,null,"① 細項目",{"$f":"COUNTIF(Q79:Q81,TRUE)","v":0},{"$f":"\"／\"&COUNTA(Q79:Q81)","v":"／3"},{"$f":"L78/COUNTA(Q79:Q81)","v":0}]
[null,null,"①","建築制限の行動手順の流れを整理、理解しているか。",null,"Ｐ18,19",null,null,null,null,null,"区域における復興事業の想定","Ｐ18,19",null,null,false,false]
[null,null,null,null,null,null,null,null,null,null,null,"区域における建築制限の指定等の事前検討","Ｐ18,19",null,null,null,false]
[null,null,null,null,"被災後に面的整備が必要となる区域について、想定しているか。","Ｐ18,19",null,null,null,null,null,"区域における関係住民等への情報提供","Ｐ18,19",null,null,false,false]
[null,null,null,null,null,null,null,null,null,null,"② 細項目",{"$f":"COUNTIF(Q83:Q84,TRUE)","v":0},{"$f":"\"／\"&COUNTA(Q83:Q84)","v":"／2"},{"$f":"L82/COUNTA(Q83:Q84)","v":0}]
[null,null,"②","特定行政庁との事前協議等を行っているか。",null,"Ｐ18,19",null,null,null,null,null,"指定の必要性、考え方・具体的な手続き","Ｐ18",null,null,false,false]
[null,null,null,null,null,null,null,null,null,null,null,"建築制限区域の指定及び解除の判断基準","Ｐ18",null,null,null,false]
[null,"Ⅳ　復興まちづくり計画等の策定"]
[null,null,"①","復興計画・復興まちづくり計画の検討体制等を想定しているか。",null,"Ｐ28",null,null,null,null,"① 細項目",{"$f":"COUNTIF(Q87:Q91,TRUE)","v":0},{"$f":"\"／\"&COUNTA(Q87:Q91)","v":"／5"},{"$f":"L86/COUNTA(Q87:Q91)","v":0},null,false]
[null,null,null,null,null,null,null,null,null,null,null,"庁内体制の検討（復興所管部署等の明確化）","Ｐ28",null,null,null,false]
[null,null,null,null,null,null,null,null,null,null,null,"外部検討会議（学識者、構成員等）の検討","Ｐ28",null,null,null,false]
[null,null,null,null,null,null,null,null,null,null,null,"策定方法、スケジュール等の検討","Ｐ28",null,null,null,false]
[null,null,null,null,null,null,null,null,null,null,null,"住民との合意形成の方法の検討","Ｐ28",null,null,null,false]
[null,null,null,null,null,null,null,null,null,null,null,"情報発信の方法","Ｐ28",null,null,null,false]
[null,null,"②","復興まちづくりにおける事業用地等の検討を行っているか。",null,"Ｐ28",null,null,null,null,"② 細項目",{"$f":"COUNTIF(Q93:Q96,TRUE)","v":0},{"$f":"\"／\"&COUNTA(Q93:Q96)","v":"／4"},{"$f":"L92/COUNTA(Q93:Q96)","v":0},null,false]
[null,null,null,null,null,null,null,null,null,null,null,"公有地等の利用可能な用地の抽出","Ｐ28",null,null,null,false]
[null,null,null,null,null,null,null,null,null,null,null,"候補地抽出における各事業用地等との調整","Ｐ28",null,null,null,false]
[null,null,null,null,null,null,null,null,null,null,null,"民有地等を想定する場合における地権者の意向確認等","Ｐ28",null,null,null,false]
[null,null,null,null,null,null,null,null,null,null,null,"高台移転等を想定する場合における跡地利用","Ｐ28",null,null,null,false]
[null,null,"③","平時から復興まちづくり計画等を検討しているか。",null,"Ｐ30,31,\n 32,34",null,null,null,null,"③ 細項目",{"$f":"COUNTIF(Q98:Q102,TRUE)","v":0},{"$f":"\"／\"&COUNTA(Q98:Q102)","v":"／5"},{"$f":"L97/COUNTA(Q98:Q102)","v":0},null,false]
[null,null,null,null,null,null,null,null,null,null,null,"都市計画マスタープラン等への復興まちづくりの位置付け","Ｐ30",null,null,null,false]
[null,null,null,null,null,null,null,null,null,null,null,"被害想定に応じた計画・事業の検討","Ｐ34",null,null,null,false]
[null,null,null,null,null,null,null,null,null,null,null,"復興まちづくり関連事業（防災集団移転促進事業等）の理解","Ｐ33",null,null,null,false]
[null,"Ⅴ　共通・その他",null,null,null,null,null,null,null,null,null,"復興まちづくりにおける導入事業の検討","Ｐ33",null,null,null,false]
[null,null,"①","災害発生時における行政機能等の確保・維持に向けた対策に取組んでいるか。",null,"Ｐ35",null,null,null,null,null,"高規格道路のＩＣ等の周辺開発計画との調整","Ｐ34",null,null,false,false]
[]
[null,null,null,null,null,null,null,null,null,null,"■浸水想定エリアにある場合"]
[null,null,null,null,"庁舎、病院等の耐震化・老朽化対策等は実施しているか。","Ｐ35",null,null,null,null,"① 細項目",{"$f":"COUNTIF(Q106:Q114,TRUE)","v":0},{"$f":"\"／\"&COUNTA(Q106:Q114)","v":"／3"},{"$f":"L105/COUNTA(Q106:Q114)","v":0},null,false]
[null,null,null,null,null,null,null,null,null,null,"　うち浸水深が浅い場合"]
[null,null,null,null,"災害対策本部の代替施設は想定しているか。","Ｐ35",null,null,null,null,null,"現敷地内での建替えも含め検討",null,null,null,false]
[null,null,null,null,null,null,null,null,null,null,null,"　　（土台のかさ上げ、止水壁、止水板の設置等）",null,null,null,null,false]
[null,null,"②","業務継続計画（ＢＣＰ）等を策定しているか。",null,"Ｐ35",null,null,null,null,null,"　　（自家発電機は水没しない階に設置等）",null,null,null,false]
[null,null,null,null,null,null,null,null,null,null,"　うち浸水深が深い場合"]
[null,null,null,null,"計画に基づく訓練を実施しているか。","Ｐ35",null,null,null,null,null,"浸水しない高台等への移転の検討",null,null,null,false]
[null,null,null,null,null,null,null,null,null,null,null,"　　（高規格道路ＩＣ等も含めた交通アクセス",null,null,null,null,false]
[null,null,null,null,"訓練等を通じた実行性の確認により、計画の見直しを行っているか。","Ｐ35",null,null,null,null,null,"　　　や市民生活等に配慮）",null,null,null,false]
[null,null,null,null,null,null,null,null,null,null,null,"復興まちづくり計画への位置づけ（まちの行政機能）",null,null,null,null,false]
[null,null,"③","応援職員の受入体制を検討しているか。",null,"Ｐ36",null,null,null,null,null,null,null,null,null,false]
[null,null,null,null,null,null,null,null,null,null,"③ 細項目",{"$f":"COUNTIF(Q117:Q120,TRUE)","v":0},{"$f":"\"／\"&COUNTA(Q117:Q120)","v":"／4"},{"$f":"L116/COUNTA(Q117:Q120)","v":0}]
[null,null,"④","災害発生時の応援協定等の締結を行っているか。",null,"Ｐ36",null,null,null,null,null,"必要な職能や派遣期間","Ｐ36",null,null,false,false]
[null,null,null,null,null,null,null,null,null,null,null,"業務に応じた応援要請先","Ｐ36",null,null,null,false]
[null,null,null,null,"締結先の市町村・機関等の連絡先を整理しているか。","Ｐ35",null,null,null,null,null,"応援要請のための手続き（応援要請文書の様式作成等）","Ｐ36",null,null,false,false]
[null,null,null,null,null,null,null,null,null,null,null,"受援計画の作成（連絡や要請の手順、要員の集合・配置体制など）",null,null,null,null,false]
[null,null,null,null,"同時被災しない地域の市町村等との協定の締結を行っているか。","Ｐ35",null,null,null,null,null,null,null,null,null,false]
[]
[null,null,null,null,"定期的な連絡・交流を行っているか。","Ｐ35",null,null,null,null,null,null,null,null,null,false]
[]
[null,null,"⑤","多様な発注・契約方式等を検討しているか。",null,"Ｐ36",null,null,null,null,null,null,null,null,null,false]
[]
[null,null,"⑥","定期的な見直し（次回のチェックリストの確認時期）の予定を決めているか。",null,"Ｐ36",null,null,null,null,null,null,null,null,null,false]
[]
[null,null,"※避難施設の確保（津波避難路、津波避難タワー、避難所、備蓄倉庫、ヘリポート等）については、災害発生直後の一次避難までの対応であり「災害に強いまちづくりガイドライン」等を参考として優先して対応すること。"]
[]
[]
[null,null,"このチェックリスト（2018版）については、今後、東日本大震災により被災した地方公共団体へのヒアリング等により、内容の実行性を検討し、随時更新することを予定している。"]
[]
[null,"【進捗状況】"]
[null,"項目",null,null,null,"チェック項目数",null,"実施状況",null,"進捗率"]
[null,"Ⅰ　基礎情報・収集状況の収集・整理",null,null,null,10,null,{"$f":"COUNTIF(P6:P44,TRUE)","v":0},null,{"$f":"H136/F136","v":0},null,null,null,null,null,{"$f":"COUNTA(P6:P44)","v":10}]
[null,"Ⅲ　住まい・生活の再建",null,null,null,15,null,{"$f":"COUNTIF(P46:P77,TRUE)","v":0},null,0,null,null,null,null,null,{"$f":"COUNTA(P46:P77)","v":15}]
[null,"Ⅱ　復興まちづくりに必要な制限の検討・実施",null,null,null,3,null,{"$f":"COUNTIF(P79:P84,TRUE)","v":0},null,0,null,null,null,null,null,{"$f":"COUNTA(P79:P84)","v":3}]
[null,"Ⅳ　復興まちづくり計画等の策定",null,null,null,3,null,{"$f":"COUNTIF(P86:P100,TRUE)","v":0},null,0,null,null,null,null,null,{"$f":"COUNTA(P86:P100)","v":3}]
[null,"Ⅴ　共通・その他",null,null,null,13,null,{"$f":"COUNTIF(P102:P128,TRUE)","v":0},null,0,null,null,null,null,null,{"$f":"COUNTA(P102:P128)","v":13}]
[null,"　　合計",null,null,null,{"$f":"SUM(F136:G140)","v":44},null,{"$f":"SUM(H136:I140)","v":0},null,0]
[null,"※市町村担当者のアンケート結果等にて、「Ⅰ　基礎情報・被災状況の収集・整理」と「Ⅲ　住まい・生活の再建」が重視されていたことから、チェックリストでは順番を変更している。"]
[]
[]
[null,null,null,null,"【チェック実施日】"]
[]
[null,null,null,null,"【チェック実施者】","部署"]
[]
[null,null,null,null,null,"氏名"]

{"sheet":"入力例）平成30年3月30日","index":2,"n_rows":148,"n_cols":17,"rows_kept":148,"cut":false,"hidden":false,"merged":[[145,6,145,8],[147,6,147,8],[139,1,139,4],[139,5,139,6],[139,7,139,8],[139,9,139,10],[140,1,141,10],[143,6,143,8],[137,1,137,4],[137,5,137,6],[137,7,137,8],[137,9,137,10],[138,1,138,4],[138,5,138,6],[138,7,138,8],[138,9,138,10],[135,1,135,4],[135,5,135,6],[135,7,135,8],[135,9,135,10],[136,1,136,4],[136,5,136,6],[136,7,136,8],[136,9,136,10],[127,2,128,13],[133,1,133,4],[133,5,133,6],[133,7,133,8],[133,9,133,10],[134,1,134,4],[134,5,134,6],[134,7,134,8],[134,9,134,10],[130,2,130,13],[123,2,124,2],[123,3,124,4],[123,5,124,5],[123,6,124,7],[123,8,124,8],[125,2,126,2],[125,3,126,4],[125,5,126,5],[125,6,126,7],[125,8,126,8],[119,4,120,4],[119,5,120,5],[119,6,120,7],[119,8,120,8],[121,4,122,4],[121,5,122,5],[121,6,122,7],[121,8,122,8],[115,2,116,2],[115,3,116,4],[115,5,116,5],[115,6,116,7],[115,8,116,8],[117,4,118,4],[117,5,118,5],[117,6,118,7],[117,8,118,8],[109,4,110,4],[109,5,110,5],[109,6,110,7],[109,8,110,8],[111,4,112,4],[111,5,112,5],[111,6,112,7],[111,8,112,8],[113,2,114,2],[113,3,114,4],[113,5,114,5],[113,6,114,7],[113,8,114,8],[103,4,104,4],[103,5,104,5],[103,6,104,7],[103,8,104,8],[105,4,106,4],[105,5,106,5],[105,6,106,7],[105,8,106,8],[107,2,108,2],[107,3,108,4],[107,5,108,5],[107,6,108,7],[107,8,108,8],[98,6,98,7],[99,6,99,7],[100,6,100,7],[101,2,102,2],[101,3,102,4],[101,5,102,5],[101,6,102,7],[91,8,92,8],[93,6,93,7],[94,6,94,7],[95,6,95,7],[96,2,97,2],[96,3,97,4],[96,5,97,5],[96,6,97,7],[96,8,97,8],[101,8,102,8],[87,6,87,7],[88,6,88,7],[89,6,89,7],[90,6,90,7],[91,2,92,2],[91,3,92,4],[91,5,92,5],[91,6,92,7],[84,6,84,7],[85,2,86,2],[85,3,86,4],[85,5,86,5],[85,6,86,7],[85,8,86,8],[80,4,81,4],[80,5,81,5],[80,6,81,7],[80,8,81,8],[82,2,83,2],[82,3,83,4],[82,5,83,5],[82,6,83,7],[82,8,83,8],[77,6,77,7],[78,2,79,2],[78,3,79,4],[78,5,79,5],[78,6,79,7],[78,8,79,8],[72,2,73,2],[72,3,73,4],[72,5,73,5],[72,6,73,7],[72,8,73,8],[74,2,75,2],[74,3,75,4],[74,5,75,5],[74,6,75,7],[74,8,75,8],[68,4,69,4],[68,5,69,5],[68,6,69,7],[68,8,69,8],[70,4,71,4],[70,5,71,5],[70,6,71,7],[70,8,71,8],[63,2,65,2],[63,3,65,4],[63,5,65,5],[63,6,65,7],[63,8,65,8],[66,4,67,4],[66,5,67,5],[66,6,67,7],[66,8,67,8],[59,4,60,4],[59,5,60,5],[59,6,60,7],[59,8,60,8],[61,4,62,4],[61,5,62,5],[61,6,62,7],[61,8,62,8],[55,4,56,4],[55,5,56,5],[55,6,56,7],[55,8,56,8],[57,2,58,2],[57,3,58,4],[57,5,58,5],[57,6,58,7],[57,8,58,8],[51,2,52,2],[51,3,52,4],[51,5,52,5],[51,6,52,7],[51,8,52,8],[53,4,54,4],[53,5,54,5],[53,6,54,7],[53,8,54,8],[47,4,48,4],[47,5,48,5],[47,6,48,7],[47,8,48,8],[49,4,50,4],[49,5,50,5],[49,6,50,7],[49,8,50,8],[44,6,44,7],[45,2,46,2],[45,3,46,4],[45,5,46,5],[45,6,46,7],[45,8,46,8],[40,2,41,2],[40,3,41,4],[40,5,41,5],[40,6,41,7],[40,8,41,8],[42,2,43,2],[42,3,43,4],[42,5,43,5],[42,6,43,7],[42,8,43,8],[35,4,37,4],[35,5,37,5],[35,6,37,7],[35,8,37,8],[38,4,39,4],[38,5,39,5],[38,6,39,7],[38,8,39,8],[29,6,29,7],[30,6,30,7],[31,6,31,7],[32,6,32,7],[32,10,32,12],[33,4,34,4],[33,5,34,5],[33,6,34,7],[33,8,34,8],[26,2,27,2],[26,3,27,4],[26,5,27,5],[26,6,27,7],[26,8,27,8],[28,6,28,7],[22,3,23,3],[22,4,23,4],[22,5,23,5],[22,6,23,7],[22,8,23,8],[24,3,25,3],[24,4,25,4],[24,5,25,5],[24,6,25,7],[24,8,25,8],[19,6,19,7],[20,2,21,2],[20,3,21,4],[20,5,21,5],[20,6,21,7],[20,8,21,8],[13,6,13,7],[14,6,14,7],[15,6,15,7],[16,6,16,7],[17,6,17,7],[18,6,18,7],[7,6,7,7],[8,6,8,7],[9,6,9,7],[10,6,10,7],[11,6,11,7],[12,6,12,7],[1,15,1,16],[3,1,3,4],[3,6,3,7],[4,6,4,7],[5,2,6,2],[5,3,6,4],[5,5,6,5],[5,6,6,7],[5,8,6,8]]}
[]
[null,"■四国における津波災害からの復興まちづくりに向けた事前対応の手引きに関するチェックリスト（2017版）",null,null,null,null,null,null,null,null,null,null,null,"（入力例）",null,"集計用"]
[]
[null,"Step１　事前対応の取組の実施状況の確認",null,null,null,"参考頁","担当課",null,"チエック欄",null,"チエック欄","Step２　内容及び配慮事項等の確認","参考頁","備考",null,"実施状況",false]
[null,"Ⅰ　基礎情報・被災状況の収集・整理",null,null,null,null,null,null,null,null,"① 細項目",{"$f":"COUNTIF(Q6:Q25,TRUE)","v":14},{"$f":"\"／\"&COUNTA(Q6:Q25)","v":"／20"},{"$f":"L5/COUNTA(Q6:Q25)","v":0.7}]
[null,null,"①","災害時に必要となるデータ・情報等について、定期的な収集・整理ができているか。",null,"Ｐ13,14","建設課、防災課等",null,null,null,null,"航空写真（現況）","Ｐ14",null,null,true,false]
[null,null,null,null,null,null,null,null,null,null,null,"図面（基盤地図、インフラ図面等）","Ｐ14","建設課",null,null,true]
[null,null,null,null,null,null,null,null,null,null,null,"応急仮設住宅の建設候補地","Ｐ14","建設課",null,null,true]
[null,null,null,null,null,null,null,null,null,null,null,"仮設店舗・工場団地整備用地の候補地","Ｐ14",null,null,null,false]
[null,null,null,null,null,null,null,null,null,null,null,"事業者情報（業種、連絡先、事業継続意向等）","Ｐ14",null,null,null,false]
[null,null,null,null,null,null,null,null,null,null,null,"土地利用状況（面積、都市施設状況、公共交通状況）","Ｐ14","建設課",null,null,true]
[null,null,null,null,null,null,null,null,null,null,null,"事業不適格地（埋蔵文化財包蔵地、農振農用地、保安林等）","Ｐ14",null,null,null,false]
[null,null,null,null,null,null,null,null,null,null,null,"洪水・土砂災害等の災害危険箇所","Ｐ14","建設課",null,null,true]
[null,null,null,null,null,null,null,null,null,null,null,"公有財産台帳","Ｐ14",null,null,null,true]
[null,null,null,null,null,null,null,null,null,null,null,"都道府県公用地、国有地等の照会","Ｐ14","防災課",null,null,true]
[null,null,null,null,null,null,null,null,null,null,null,"登記簿（土地）","Ｐ15","税務課",null,null,true]
[null,null,null,null,null,null,null,null,null,null,null,"登記簿（建物）","Ｐ15","税務課",null,null,true]
[null,null,null,null,null,null,null,null,null,null,null,"固定資産課税台帳","Ｐ15","税務課",null,null,true]
[null,null,null,null,null,null,null,null,null,null,null,"地権者情報（地籍調査の推進、所有者不明土地の探索を含む）","Ｐ15","税務課",null,null,true]
[null,null,null,null,null,null,null,null,null,null,null,"不動産鑑定標準価格","Ｐ15",null,null,null,false]
[null,null,"②","事前に収集したデータ・情報等については、適切な保管ができているか。",null,"Ｐ15","防災課",null,null,null,null,"空き住戸戸数、所在","Ｐ14",null,null,true,false]
[null,null,null,null,null,null,null,null,null,null,null,"地区別人口（年齢階層別）","Ｐ14","住民課",null,null,true]
[null,null,null,null,"共通のフォーマットやＧＩＳデータ等として整理できているか。","Ｐ15",null,null,null,null,null,"地区別世帯数（世帯構成別）","Ｐ14","住民課",null,false,true]
[null,null,null,null,null,null,null,null,null,null,null,"住民組織の状況（自主防災組織、連絡体制等）","Ｐ14","防災課",null,null,true]
[null,null,null,null,"関係部局で共有できる仕組みができているか。","Ｐ15","防災課",null,null,null,null,"都市計画マスタープラン等の上位計画","Ｐ15","建設課",null,true,true]
[null,null,null,null,null,null,null,null,null,null,"③-1 細項目",{"$f":"COUNTIF(Q27:Q32,TRUE)","v":3},{"$f":"\"／\"&COUNTA(Q27:Q32)","v":"／6"},{"$f":"L26/COUNTA(Q27:Q32)","v":0.5}]
[null,null,"③","災害後に必要となるデータ・情報について、収集を行う体制ができているか。",null,"Ｐ16","建設課、防災課",null,null,null,null,"航空写真（被災後）","Ｐ14",null,null,true,false]
[null,null,null,null,null,null,null,null,null,null,null,"津波による被害状況（浸水範囲、浸水深、被災世帯等）","Ｐ14","建設課",null,null,true]
[null,null,null,null,null,null,null,null,null,null,null,"被災世帯所在地・世帯構成等","Ｐ14",null,null,null,false]
[null,null,null,null,null,null,null,null,null,null,null,"防災施設等の被害状況","Ｐ15",null,null,null,false]
[null,null,null,null,null,null,null,null,null,null,null,"インフラ施設の被害状況","Ｐ15","建設課",null,null,true]
[null,null,null,null,null,null,null,null,null,null,null,"公共施設・ライフラインの被害状況","Ｐ15","建設課、防災課",null,null,true]
[null,null,null,null,null,null,null,null,null,null,"※住家の被災等は、「応急危険度判定・被災宅地危険度判定」の項目にて整理。"]
[null,null,null,null,"自市町村にて調査等を行うための調査計画等を検討しているか。","Ｐ16","建設課",null,null,null,null,null,null,null,null,true]
[null,null,null,null,null,null,null,null,null,null,"③-2 細項目",{"$f":"COUNTIF(Q36:Q40,TRUE)","v":1},{"$f":"\"／\"&COUNTA(Q36:Q40)","v":"／5"},{"$f":"L35/COUNTA(Q36:Q40)","v":0.2}]
[null,null,null,null,"データ・情報を所有又は調査等を行う機関の把握と依頼方法の検討を行っているか。","Ｐ16",null,null,null,null,null,"調査内容の事前検討","P16","建設課",null,false,true]
[null,null,null,null,null,null,null,null,null,null,null,"調査手法の事前検討","P16",null,null,null,false]
[null,null,null,null,null,null,null,null,null,null,null,"調査結果の整理フォーマット（様式等）の作成","P16",null,null,null,false]
[null,null,null,null,"被災状況等の把握に向け、各種団体や機関との協定を締結しているか。","Ｐ16","防災課、総務課",null,null,null,null,"調査工程の事前検討","P16",null,null,true,false]
[null,null,null,null,null,null,null,null,null,null,null,"発注方式や発注先の候補等の事前検討","P16",null,null,null,false]
[null,null,"④","被災後に必要となるデータ・情報等は安全な場所等において管理できているか。",null,"Ｐ16","総務課",null,null,null,"④ 細項目",{"$f":"COUNTIF(Q42:Q44,TRUE)","v":2},{"$f":"\"／\"&COUNTA(Q42:Q44)","v":"／3"},{"$f":"L41/COUNTA(Q42:Q44)","v":0.66666666666666663},null,true]
[null,null,null,null,null,null,null,null,null,null,null,"浸水想定区域外や遠隔地での保管","P16","○○支所",null,null,true]
[null,null,"⑤","被災後すぐに必要となるデータ・情報等は、紙媒体でも保管できているか。",null,"Ｐ16",null,null,null,null,null,"複数（バックアップ）での保管","P16","○○支所",null,false,true]
[null,null,null,null,null,null,null,null,null,null,null,"民間事業者等での保管","P16",null,null,null,false]
[null,"Ⅲ　住まい・生活の再建",null,null,null,null,null,null,null,null,"① 細項目",{"$f":"COUNTIF(Q46:Q48,TRUE)","v":1},{"$f":"\"／\"&COUNTA(Q46:Q48)","v":"／3"},{"$f":"L45/COUNTA(Q46:Q48)","v":0.33333333333333331}]
[null,null,"①","応急仮設住宅建設候補用地の抽出は行っているか。",null,"Ｐ23","建設課",null,null,null,null,"県の公有地や国有地等の照会","Ｐ23","建設課",null,true,true]
[null,null,null,null,null,null,null,null,null,null,null,"候補地抽出における各事業用地等との調整","Ｐ23",null,null,null,false]
[null,null,null,null,"候補地の優先順位の検討は行っているか。","Ｐ23",null,null,null,null,null,"不足する場合には防災公園等の整備による対応を検討","Ｐ23",null,null,false,false]
[]
[null,null,null,null,"候補地におけるレイアウトの検討は行っているか。","Ｐ23",null,null,null,null,null,null,null,null,null,false]
[]
[null,null,"②","応急危険度判定の実施に向けた体制ができているか。",null,"Ｐ15,24","建設課、防災課",null,null,null,null,null,null,null,null,true]
[]
[null,null,null,null,"建築士会等との協定を締結しているか。","Ｐ24","建設課、防災課、総務課",null,null,null,null,null,null,null,null,true]
[null,null,null,null,null,null,null,null,null,null,"② 細項目",{"$f":"COUNTIF(Q56:Q58,TRUE)","v":1},{"$f":"\"／\"&COUNTA(Q56:Q58)","v":"／3"},{"$f":"L55/COUNTA(Q56:Q58)","v":0.33333333333333331}]
[null,null,null,null,"速やかな実施に向けた準備を行っているか。","Ｐ24",null,null,null,null,null,"応急危険度判定士等の養成","Ｐ24","○○建築士会",null,false,true]
[null,null,null,null,null,null,null,null,null,null,null,"応急危険度判定の実施等に関する計画の作成","Ｐ24",null,null,null,false]
[null,null,"③","被災宅地危険度判定の実施に向けた体制ができているか。",null,"Ｐ15,24","建設課、防災課",null,null,null,null,"応急危険度判定等に必要な資機材の備蓄","Ｐ24",null,null,true,false]
[]
[null,null,null,null,"他市町村等へ応援要請を行う体制はできているか。","Ｐ24",null,null,null,null,"③ 細項目",{"$f":"COUNTIF(Q61:Q63,TRUE)","v":1},{"$f":"\"／\"&COUNTA(Q61:Q63)","v":"／3"},{"$f":"L60/COUNTA(Q61:Q63)","v":0.33333333333333331},null,false]
[null,null,null,null,null,null,null,null,null,null,null,"被災宅地危険度判定士等の養成","Ｐ24","県の講習会参加",null,null,true]
[null,null,null,null,"速やかな実施に向けた準備を行っているか。","Ｐ24","防災課、総務課",null,null,null,null,"被災宅地危険度判定の実施等に関する計画の作成","Ｐ24",null,null,true,false]
[null,null,null,null,null,null,null,null,null,null,null,"被災宅地危険度判定等に必要な資機材の備蓄","Ｐ24",null,null,null,false]
[null,null,"④","応急借上げ住宅として利用する可能性のある民間賃貸住宅等の空き戸数等の把握方法を検討しているか。",null,"Ｐ23","建設課、防災課",null,null,null,"④ 細項目",{"$f":"COUNTIF(Q65:Q66,TRUE)","v":0},{"$f":"\"／\"&COUNTA(Q65:Q66)","v":"／2"},{"$f":"L64/COUNTA(Q65:Q66)","v":0}]
[null,null,null,null,null,null,null,null,null,null,null,"空き住戸戸数の把握方法","Ｐ14、Ｐ23",null,null,true,false]
[null,null,null,null,null,null,null,null,null,null,null,"物件状況（被害の有無等）の確認方法","Ｐ14、Ｐ24",null,null,null,false]
[null,null,null,null,"不動産業界との協定締結等を行っているか。","Ｐ23","防災課、総務課",null,null,null,"⑤ 細項目",{"$f":"COUNTIF(Q68:Q73,TRUE)","v":1},{"$f":"\"／\"&COUNTA(Q68:Q73)","v":"／6"},{"$f":"L67/COUNTA(Q68:Q73)","v":0.16666666666666666}]
[null,null,null,null,null,null,null,null,null,null,null,"応急仮設住宅への入居意向の把握方法","Ｐ24",null,null,true,false]
[null,null,null,null,"応急借上げ住宅として活用可能な空家等の把握を行っているか。","Ｐ23",null,null,null,null,null,"入居者の選定基準","Ｐ24",null,null,null,false]
[null,null,null,null,null,null,null,null,null,null,null,"申込受付、抽選、入居者選定の通知方法等","Ｐ24",null,null,false,false]
[null,null,null,null,"空き住宅の所有者の意向把握方法等について検討しているか。","Ｐ23",null,null,null,null,null,"コミュニティへの配慮の方法","Ｐ24",null,null,null,false]
[null,null,null,null,null,null,null,null,null,null,null,"応急仮設住宅の標準仕様の検討（県との調整）","Ｐ24","県とのモデル検討",null,false,true]
[null,null,"⑤","応急仮設住宅の入居手続き等について検討しているか。",null,"Ｐ24",null,null,null,null,null,"応急仮設住宅の解消、撤去の方法","Ｐ24",null,null,null,false]
[null,null,null,null,null,null,null,null,null,null,"⑥ 細項目",{"$f":"COUNTIF(Q75:Q77,TRUE)","v":0},{"$f":"\"／\"&COUNTA(Q75:Q77)","v":"／3"},{"$f":"L74/COUNTA(Q75:Q77)","v":0},null,false]
[null,null,"⑥","災害公営住宅等の確保に向けた検討を行っているか。",null,"Ｐ24",null,null,null,null,null,"復興まちづくりにおける事業用地の候補地の抽出","Ｐ23",null,null,null,false]
[null,null,null,null,null,null,null,null,null,null,null,"復旧期・復興期に必要となる各事業用地等との調整","Ｐ23",null,null,false,false]
[null,null,null,null,null,null,null,null,null,null,null,"復興まちづくり計画への位置づけ（まちの居住機能の一部）",null,null,null,null,false]
[null,"Ⅱ　復興まちづくりに必要な制限の検討・実施",null,null,null,null,null,null,null,null,"① 細項目",{"$f":"COUNTIF(Q79:Q81,TRUE)","v":0},{"$f":"\"／\"&COUNTA(Q79:Q81)","v":"／3"},{"$f":"L78/COUNTA(Q79:Q81)","v":0}]
[null,null,"①","建築制限の行動手順の流れを整理、理解しているか。",null,"Ｐ18,19","建設課",null,null,null,null,"区域における復興事業の想定","Ｐ18,19",null,null,true,false]
[null,null,null,null,null,null,null,null,null,null,null,"区域における建築制限の指定等の事前検討","Ｐ18,19",null,null,null,false]
[null,null,null,null,"被災後に面的整備が必要となる区域について、想定しているか。","Ｐ18,19",null,null,null,null,null,"区域における関係住民等への情報提供","Ｐ18,19",null,null,false,false]
[null,null,null,null,null,null,null,null,null,null,"② 細項目",{"$f":"COUNTIF(Q83:Q84,TRUE)","v":0},{"$f":"\"／\"&COUNTA(Q83:Q84)","v":"／2"},{"$f":"L82/COUNTA(Q83:Q84)","v":0}]
[null,null,"②","特定行政庁との事前協議等を行っているか。",null,"Ｐ18,19",null,null,null,null,null,"指定の必要性、考え方・具体的な手続き","Ｐ18",null,null,false,false]
[null,null,null,null,null,null,null,null,null,null,null,"建築制限区域の指定及び解除の判断基準","Ｐ18",null,null,null,false]
[null,"Ⅳ　復興まちづくり計画等の策定"]
[null,null,"①","復興計画・復興まちづくり計画の検討体制等を想定しているか。",null,"Ｐ27","防災課",null,null,null,"① 細項目",{"$f":"COUNTIF(Q87:Q91,TRUE)","v":1},{"$f":"\"／\"&COUNTA(Q87:Q91)","v":"／5"},{"$f":"L86/COUNTA(Q87:Q91)","v":0.2},null,true]
[null,null,null,null,null,null,null,null,null,null,null,"庁内体制の検討（復興所管部署等の明確化）","Ｐ27",null,null,null,true]
[null,null,null,null,null,null,null,null,null,null,null,"外部検討会議（学識者、構成員等）の検討","Ｐ27",null,null,null,false]
[null,null,null,null,null,null,null,null,null,null,null,"策定方法、スケジュール等の検討","Ｐ27",null,null,null,false]
[null,null,null,null,null,null,null,null,null,null,null,"住民との合意形成の方法の検討","Ｐ27",null,null,null,false]
[null,null,null,null,null,null,null,null,null,null,null,"情報発信の方法","Ｐ27",null,null,null,false]
[null,null,"②","復興まちづくりにおける事業用地等の検討を行っているか。",null,"Ｐ27",null,null,null,null,"② 細項目",{"$f":"COUNTIF(Q93:Q96,TRUE)","v":0},{"$f":"\"／\"&COUNTA(Q93:Q96)","v":"／4"},{"$f":"L92/COUNTA(Q93:Q96)","v":0},null,false]
[null,null,null,null,null,null,null,null,null,null,null,"公有地等の利用可能な用地の抽出","Ｐ27",null,null,null,false]
[null,null,null,null,null,null,null,null,null,null,null,"候補地抽出における各事業用地等との調整","Ｐ27",null,null,null,false]
[null,null,null,null,null,null,null,null,null,null,null,"民有地等を想定する場合における地権者の意向確認等","Ｐ27",null,null,null,false]
[null,null,null,null,null,null,null,null,null,null,null,"高台移転等を想定する場合における跡地利用","Ｐ27",null,null,null,false]
[null,null,"③","平時から復興まちづくり計画等を検討しているか。",null,"Ｐ28,29",null,null,null,null,"③ 細項目",{"$f":"COUNTIF(Q98:Q102,TRUE)","v":2},{"$f":"\"／\"&COUNTA(Q98:Q102)","v":"／5"},{"$f":"L97/COUNTA(Q98:Q102)","v":0.4},null,false]
[null,null,null,null,null,null,null,null,null,null,null,"都市計画マスタープラン等への復興まちづくりの位置付け","Ｐ28,29","平成30年3月策定",null,null,true]
[null,null,null,null,null,null,null,null,null,null,null,"被害想定に応じた計画・事業の検討","Ｐ29",null,null,null,false]
[null,null,null,null,null,null,null,null,null,null,null,"復興まちづくり関連事業（防災集団移転促進事業等）の理解","Ｐ29","県の講習会参加",null,null,true]
[null,"Ⅴ　共通・その他",null,null,null,null,null,null,null,null,null,"復興まちづくりにおける導入事業の検討","Ｐ29",null,null,null,false]
[null,null,"①","災害発生時における行政機能等の確保・維持に向けた対策に取組んでいるか。",null,"Ｐ31","防災課、総務課",null,null,null,null,"高規格道路のＩＣ等の周辺開発計画との調整",null,null,null,true,false]
[null,null,null,null,null,null,null,null,null,null,"■浸水想定エリアにある場合"]
[null,null,null,null,"庁舎、病院等の耐震化・老朽化対策等は実施しているか。","Ｐ31",null,null,null,null,"① 細項目",{"$f":"COUNTIF(Q105:Q113,TRUE)","v":1},{"$f":"\"／\"&COUNTA(Q105:Q113)","v":"／3"},{"$f":"L104/COUNTA(Q105:Q113)","v":0.33333333333333331},null,true]
[null,null,null,null,null,null,null,null,null,null,"　うち浸水深が浅い場合"]
[null,null,null,null,"災害対策本部の代替施設は想定しているか。","Ｐ31","防災課",null,null,null,null,"現敷地内での建替えも含め検討",null,null,null,true]
[null,null,null,null,null,null,null,null,null,null,null,"　　（土台のかさ上げ、止水壁、止水板の設置等）",null,"新庁舎検討",null,null,true]
[null,null,"②","業務継続計画（ＢＣＰ）等を策定しているか。",null,"Ｐ31","防災課",null,null,null,null,"　　（自家発電機は水没しない階に設置等）",null,null,null,true]
[null,null,null,null,null,null,null,null,null,null,"　うち浸水深が深い場合"]
[null,null,null,null,"計画に基づく訓練を実施しているか。","Ｐ31","防災課等",null,null,null,null,"浸水しない高台等への移転の検討",null,null,null,true]
[null,null,null,null,null,null,null,null,null,null,null,"　　（高規格道路ＩＣ等も含めた交通アクセス",null,null,null,null,false]
[null,null,null,null,"訓練等を通じた実行性の確認により、計画の見直しを行っているか。","Ｐ31",null,null,null,null,null,"　　　や市民生活等に配慮）",null,null,null,false]
[null,null,null,null,null,null,null,null,null,null,null,"復興まちづくり計画への位置づけ（まちの行政機能）",null,null,null,null,false]
[null,null,"③","応援職員の受入体制を検討しているか。",null,"Ｐ32","防災課",null,null,null,null,null,null,null,null,true]
[null,null,null,null,null,null,null,null,null,null,"③ 細項目",{"$f":"COUNTIF(Q116:Q119,TRUE)","v":1},{"$f":"\"／\"&COUNTA(Q116:Q119)","v":"／4"},{"$f":"L115/COUNTA(Q116:Q119)","v":0.25}]
[null,null,"④","災害発生時の応援協定等の締結を行っているか。",null,"Ｐ32","防災課、総務課",null,null,null,null,"必要な職能や派遣期間","Ｐ31","受援計画検討",null,true,true]
[null,null,null,null,null,null,null,null,null,null,null,"業務に応じた応援要請先","Ｐ31",null,null,null,false]
[null,null,null,null,"締結先の市町村・機関等の連絡先を整理しているか。","Ｐ31","防災課",null,null,null,null,"応援要請のための手続き（応援要請文書の様式作成等）","Ｐ31",null,null,true,false]
[null,null,null,null,null,null,null,null,null,null,null,"受援計画の作成（連絡や要請の手順、要員の集合・配置体制など）",null,null,null,null,false]
[null,null,null,null,"同時被災しない地域の市町村等との協定の締結を行っているか。","Ｐ32","防災課",null,null,null,null,null,null,null,null,true]
[]
[null,null,null,null,"定期的な連絡・交流を行っているか。","Ｐ32","防災課、総務課",null,null,null,null,null,null,null,null,true]
[]
[null,null,"⑤","多様な発注・契約方式等を検討しているか。",null,"Ｐ32",null,null,null,null,null,null,null,null,null,false]
[]
[null,null,"⑥","定期的な見直し（次回のチェックリストの確認時期）の予定を決めているか。",null,"Ｐ32",null,null,null,null,null,null,null,null,null,false]
[]
[null,null,"※避難施設の確保（津波避難路、津波避難タワー、避難所、備蓄倉庫、ヘリポート等）については、災害発生直後の一次避難までの対応であり「災害に強いまちづくりガイドライン」等を参考として優先して対応すること。"]
[]
[]
[null,null,"このチェックリスト（2017版）については、今後、東日本大震災により被災した地方公共団体へのヒアリング等により、内容の実行性を検討し、随時更新することを予定している。"]
[]
[null,"【進捗状況】"]
[null,"項目",null,null,null,"チェック項目数",null,"実施状況",null,"進捗率"]
[null,"Ⅰ　基礎情報・収集状況の収集・整理",null,null,null,10,null,{"$f":"COUNTIF(P6:P44,TRUE)","v":7},null,{"$f":"H135/F135","v":0.7},null,null,null,null,null,{"$f":"COUNTA(P6:P44)","v":10}]
[null,"Ⅲ　住まい・生活の再建",null,null,null,15,null,{"$f":"COUNTIF(P46:P77,TRUE)","v":7},null,{"$f":"H136/F136","v":0.46666666666666667},null,null,null,null,null,{"$f":"COUNTA(P46:P77)","v":15}]
[null,"Ⅱ　復興まちづくりに必要な制限の検討・実施",null,null,null,3,null,{"$f":"COUNTIF(P79:P84,TRUE)","v":1},null,0.33333333333333331,null,null,null,null,null,{"$f":"COUNTA(P79:P84)","v":3}]
[null,"Ⅳ　復興まちづくり計画等の策定",null,null,null,3,null,{"$f":"COUNTIF(P86:P100,TRUE)","v":1},null,0.33333333333333331,null,null,null,null,null,{"$f":"COUNTA(P86:P100)","v":3}]
[null,"Ⅴ　共通・その他",null,null,null,13,null,{"$f":"COUNTIF(P102:P127,TRUE)","v":10},null,0.76923076923076927,null,null,null,null,null,{"$f":"COUNTA(P102:P127)","v":13}]
[null,"　　合計",null,null,null,{"$f":"SUM(F135:G139)","v":44},null,{"$f":"SUM(H135:I139)","v":26},null,0.59090909090909094]
[null,"※市町村担当者のアンケート結果等にて、「Ⅰ　基礎情報・被災状況の収集・整理」と「Ⅲ　住まい・生活の再建」が重視されていたことから、チェックリストでは順番を変更している。"]
[]
[]
[null,null,null,null,"【チェック実施日】",null,"平成30年3月30日"]
[]
[null,null,null,null,"【チェック実施者】","部署","事前対応まちづくり課"]
[]
[null,null,null,null,null,"氏名","四国　太郎"]